[Event "GrandPrix_29.05"]
[Site "Chess.com"]
[Date "2020.05.29"]
[Round "4"]
[White "Lukianoo"]
[Black "Kiril1965"]
[Result "0-1"]
[WhiteElo "2601"]
[BlackElo "2737"]
[TimeControl "600+2"]
[EndTime "10:49:11 PDT"]
[Termination "Kiril1965 won by resignation"]

1. e4 {[%clk 0:10:01.9]} 1... e5 {[%clk 0:09:38.1]} 2. Nc3 {[%clk 0:09:56.1]}
2... Nf6 {[%clk 0:09:33.7]} 3. f4 {[%clk 0:09:51.6]} 3... d5 {[%clk 0:09:31.7]}
4. fxe5 {[%clk 0:09:52.4]} 4... Nxe4 {[%clk 0:09:31.5]} 5. Nf3 {[%clk
0:09:53.2]} 5... Be7 {[%clk 0:09:14.4]} 6. Qe2 {[%clk 0:09:51.4]} 6... Nxc3
{[%clk 0:08:48.9]} 7. dxc3 {[%clk 0:09:53.3]} 7... c5 {[%clk 0:08:42.9]} 8. Bf4
{[%clk 0:09:52.6]} 8... Be6 {[%clk 0:08:38.9]} 9. O-O-O {[%clk 0:09:50.3]} 9...
Nc6 {[%clk 0:08:30.2]} 10. Kb1 {[%clk 0:09:48.1]} 10... Qa5 {[%clk 0:07:58.3]}
11. a3 {[%clk 0:09:48.4]} 11... h6 {[%clk 0:07:47]} 12. h4 {[%clk 0:09:46.3]}
12... O-O-O {[%clk 0:07:44.3]} 13. g3 {[%clk 0:09:44.8]} 13... Rd7 {[%clk
0:07:02]} 14. Bh3 {[%clk 0:09:44.7]} 14... Rhd8 {[%clk 0:07:00.7]} 15. Bxe6
{[%clk 0:09:45.2]} 15... fxe6 {[%clk 0:07:01.9]} 16. Nd2 {[%clk 0:09:36.6]}
16... g5 {[%clk 0:06:23.3]} 17. hxg5 {[%clk 0:09:36.2]} 17... hxg5 {[%clk
0:06:24.8]} 18. Be3 {[%clk 0:09:35.7]} 18... d4 {[%clk 0:05:45.5]} 19. Nc4
{[%clk 0:09:06.5]} 19... Qa6 {[%clk 0:05:29.6]} 20. cxd4 {[%clk 0:09:07.3]}
20... cxd4 {[%clk 0:05:20.9]} 21. Bc1 {[%clk 0:07:42.9]} 21... Na5 {[%clk
0:05:13.6]} 22. b3 {[%clk 0:07:42.8]} 22... Rc7 {[%clk 0:04:43.7]} 23. Rh7
{[%clk 0:07:41.4]} 23... Nxc4 {[%clk 0:04:37.1]} 24. bxc4 {[%clk 0:07:41.6]}
24... Bxa3 {[%clk 0:04:26.6]} 25. Rxc7+ {[%clk 0:07:39.7]} 25... Kxc7 {[%clk
0:04:27.4]} 26. Bxa3 {[%clk 0:07:25.2]} 26... Qxa3 {[%clk 0:04:27.3]} 27. Rd3
{[%clk 0:07:26.2]} 27... Qb4+ {[%clk 0:03:55]} 28. Rb3 {[%clk 0:07:25.9]} 28...
d3 {[%clk 0:03:48.6]} 29. Qd1 {[%clk 0:06:39.4]} 29... dxc2+ {[%clk 0:03:39.9]}
30. Qxc2 {[%clk 0:06:40.4]} 30... Qe1+ {[%clk 0:03:39.5]} 0-1

[Event "GrandPrix_29.05"]
[Site "Chess.com"]
[Date "2020.05.29"]
[Round "4"]
[White "Micki-taryan"]
[Black "JonahWillow"]
[Result "1-0"]
[WhiteElo "2511"]
[BlackElo "2263"]
[TimeControl "600+2"]
[EndTime "10:49:16 PDT"]
[Termination "Micki-taryan won by resignation"]

1. d4 {[%clk 0:10:01.9]} 1... Nf6 {[%clk 0:10:00.7]} 2. Nf3 {[%clk 0:10:03.4]}
2... e6 {[%clk 0:10:01.7]} 3. c4 {[%clk 0:10:03.8]} 3... c5 {[%clk 0:10:02.5]}
4. d5 {[%clk 0:10:05.1]} 4... exd5 {[%clk 0:10:04.4]} 5. cxd5 {[%clk 0:10:07]}
5... d6 {[%clk 0:10:06.1]} 6. Nc3 {[%clk 0:10:08.9]} 6... g6 {[%clk 0:10:07.2]}
7. Bf4 {[%clk 0:10:06]} 7... Bg7 {[%clk 0:10:07.9]} 8. e3 {[%clk 0:10:04.9]}
8... O-O {[%clk 0:10:06]} 9. h3 {[%clk 0:10:06.4]} 9... Na6 {[%clk 0:10:06.4]}
10. Bxa6 {[%clk 0:09:53.6]} 10... bxa6 {[%clk 0:10:07.4]} 11. Nd2 {[%clk
0:09:55.5]} 11... Nh5 {[%clk 0:09:20.5]} 12. Bh2 {[%clk 0:09:43.8]} 12... Rb8
{[%clk 0:09:12]} 13. Qc1 {[%clk 0:09:09.1]} 13... f5 {[%clk 0:08:49.5]} 14. O-O
{[%clk 0:09:01.7]} 14... f4 {[%clk 0:08:19.8]} 15. exf4 {[%clk 0:08:48.8]} 15...
Nxf4 {[%clk 0:08:15.1]} 16. Nde4 {[%clk 0:08:40.8]} 16... Nd3 {[%clk 0:07:29.3]}
17. Qc2 {[%clk 0:08:41.8]} 17... Nxb2 {[%clk 0:07:26.4]} 18. Bxd6 {[%clk
0:08:24.8]} 18... Bf5 {[%clk 0:07:22]} 19. Bxb8 {[%clk 0:08:14.4]} 19... Qxb8
{[%clk 0:07:03]} 20. Rab1 {[%clk 0:08:15.7]} 20... Qf4 {[%clk 0:06:28.4]} 21.
Rxb2 {[%clk 0:07:39.9]} 21... Bxe4 {[%clk 0:06:24.4]} 22. Nxe4 {[%clk
0:07:40.7]} 22... Bxb2 {[%clk 0:06:24.5]} 23. Nxc5 {[%clk 0:07:41.2]} 23... Be5
{[%clk 0:06:10.8]} 24. g3 {[%clk 0:07:41.2]} 24... Qf3 {[%clk 0:05:48.7]} 25.
Qe4 {[%clk 0:07:27]} 25... Qc3 {[%clk 0:04:06.9]} 26. Nd3 {[%clk 0:06:10.2]}
26... Qc4 {[%clk 0:03:49.8]} 27. Qxc4 {[%clk 0:06:09.7]} 1-0

[Event "GrandPrix_29.05"]
[Site "Chess.com"]
[Date "2020.05.29"]
[Round "4"]
[White "Tokarev_Sergey"]
[Black "Inspiration1"]
[Result "1-0"]
[WhiteElo "2011"]
[BlackElo "1351"]
[TimeControl "600+2"]
[EndTime "10:49:20 PDT"]
[Termination "Tokarev_Sergey won by resignation"]

1. c4 {[%clk 0:10:01.9]} 1... g6 {[%clk 0:09:56.7]} 2. Nc3 {[%clk 0:10:02.1]}
2... Bg7 {[%clk 0:09:58.1]} 3. e4 {[%clk 0:10:02.3]} 3... e5 {[%clk 0:09:54.1]}
4. g3 {[%clk 0:10:02.3]} 4... h5 {[%clk 0:09:48.7]} 5. h3 {[%clk 0:09:59.7]}
5... Nc6 {[%clk 0:09:35.6]} 6. d3 {[%clk 0:09:59.5]} 6... h4 {[%clk 0:09:32.9]}
7. g4 {[%clk 0:09:59.5]} 7... Bh6 {[%clk 0:09:34.5]} 8. Nf3 {[%clk 0:09:47.4]}
8... f6 {[%clk 0:09:26.1]} 9. Bxh6 {[%clk 0:09:22.2]} 9... Nxh6 {[%clk
0:09:14.1]} 10. Nxh4 {[%clk 0:09:22]} 10... Kf7 {[%clk 0:08:36.8]} 11. Nf3
{[%clk 0:08:35.5]} 11... Nxg4 {[%clk 0:08:24.5]} 12. Ng5+ {[%clk 0:08:21]} 12...
fxg5 {[%clk 0:08:24.6]} 13. Qxg4 {[%clk 0:08:20.9]} 13... d6 {[%clk 0:08:21.6]}
14. Qg3 {[%clk 0:08:18.7]} 14... g4 {[%clk 0:07:47.3]} 15. h4 {[%clk 0:08:07.4]}
15... Be6 {[%clk 0:06:51.3]} 16. O-O-O {[%clk 0:08:01.2]} 16... Qf6 {[%clk
0:06:46]} 17. Be2 {[%clk 0:07:07.8]} 17... g5 {[%clk 0:06:03.1]} 18. Bxg4 {[%clk
0:06:43.1]} 18... gxh4 {[%clk 0:05:41.4]} 19. Bxe6+ {[%clk 0:06:41.2]} 19...
Kxe6 {[%clk 0:05:29.1]} 20. Qg4+ {[%clk 0:06:41.1]} 20... Kf7 {[%clk 0:05:30]}
21. Nd5 {[%clk 0:06:41.8]} 21... Qh6+ {[%clk 0:05:04.4]} 22. Kb1 {[%clk
0:06:38.4]} 22... Ne7 {[%clk 0:04:22]} 23. Qf3+ {[%clk 0:06:26.1]} 23... Ke6
{[%clk 0:04:03.7]} 24. Nxc7+ {[%clk 0:06:00.1]} 24... Kd7 {[%clk 0:04:05.2]} 25.
Nxa8 {[%clk 0:06:00.5]} 25... Rxa8 {[%clk 0:04:06.6]} 26. Qg4+ {[%clk
0:05:56.7]} 26... Kc6 {[%clk 0:04:01.8]} 27. Rxh4 {[%clk 0:05:56.1]} 1-0

[Event "GrandPrix_29.05"]
[Site "Chess.com"]
[Date "2020.05.29"]
[Round "4"]
[White "AliKa2810"]
[Black "Arseniy_Nesterov"]
[Result "0-1"]
[WhiteElo "2037"]
[BlackElo "2265"]
[TimeControl "600+2"]
[EndTime "10:49:27 PDT"]
[Termination "Arseniy_Nesterov won by resignation"]

1. d4 {[%clk 0:10:01.9]} 1... d5 {[%clk 0:09:59.4]} 2. c4 {[%clk 0:10:01.4]}
2... c6 {[%clk 0:10:00.3]} 3. Nf3 {[%clk 0:10:01.5]} 3... Nf6 {[%clk 0:10:01.3]}
4. Nc3 {[%clk 0:10:01.9]} 4... dxc4 {[%clk 0:10:01.9]} 5. a4 {[%clk 0:10:02.5]}
5... a5 {[%clk 0:10:02.5]} 6. e3 {[%clk 0:09:32.8]} 6... Bg4 {[%clk 0:10:02.2]}
7. Bxc4 {[%clk 0:09:32.8]} 7... e6 {[%clk 0:10:03]} 8. h3 {[%clk 0:09:32.8]}
8... Bh5 {[%clk 0:10:03.8]} 9. O-O {[%clk 0:09:33]} 9... Bb4 {[%clk 0:10:03.2]}
10. Qe2 {[%clk 0:09:20]} 10... O-O {[%clk 0:09:59.3]} 11. Rd1 {[%clk 0:09:20.7]}
11... Nbd7 {[%clk 0:09:56.7]} 12. e4 {[%clk 0:08:50.1]} 12... Qe7 {[%clk
0:09:52.1]} 13. e5 {[%clk 0:08:34]} 13... Nd5 {[%clk 0:09:49.2]} 14. Ne4 {[%clk
0:07:42.5]} 14... h6 {[%clk 0:09:44.6]} 15. Bd3 {[%clk 0:07:33.6]} 15... c5
{[%clk 0:09:27.8]} 16. Ng3 {[%clk 0:07:19.4]} 16... Bg6 {[%clk 0:09:20.6]} 17.
Bxg6 {[%clk 0:07:19.1]} 17... fxg6 {[%clk 0:09:21.6]} 18. Qe4 {[%clk 0:07:00.2]}
18... g5 {[%clk 0:09:09.4]} 19. Ne2 {[%clk 0:06:06.8]} 19... Rf7 {[%clk
0:08:18.3]} 20. Bd2 {[%clk 0:06:04]} 20... Raf8 {[%clk 0:07:28.6]} 21. Bxb4
{[%clk 0:06:03]} 21... axb4 {[%clk 0:07:28.8]} 22. a5 {[%clk 0:05:53.8]} 22...
cxd4 {[%clk 0:07:00.9]} 23. Nexd4 {[%clk 0:05:52.5]} 23... Rf4 {[%clk
0:06:49.2]} 24. Qe2 {[%clk 0:05:49]} 24... h5 {[%clk 0:06:40.2]} 25. Nxg5 {[%clk
0:03:51.2]} 25... Rxf2 {[%clk 0:06:07.1]} 26. Qxh5 {[%clk 0:03:50.4]} 26...
Rxg2+ {[%clk 0:06:08.2]} 0-1

[Event "GrandPrix_29.05"]
[Site "Chess.com"]
[Date "2020.05.29"]
[Round "4"]
[White "mishanick"]
[Black "GM_Levan_Pantsulaia"]
[Result "1-0"]
[WhiteElo "2733"]
[BlackElo "2640"]
[TimeControl "600+2"]
[EndTime "10:49:41 PDT"]
[Termination "mishanick won by resignation"]

1. d4 {[%clk 0:10:01.9]} 1... Nf6 {[%clk 0:09:59]} 2. c4 {[%clk 0:10:02.9]} 2...
c5 {[%clk 0:09:59.7]} 3. d5 {[%clk 0:10:03.8]} 3... g6 {[%clk 0:10:00.3]} 4. Nc3
{[%clk 0:10:04.8]} 4... Bg7 {[%clk 0:10:01.4]} 5. e4 {[%clk 0:10:02.4]} 5... O-O
{[%clk 0:10:02.9]} 6. Nf3 {[%clk 0:10:02.9]} 6... e6 {[%clk 0:10:03.7]} 7. Bd3
{[%clk 0:10:02.7]} 7... exd5 {[%clk 0:10:04.6]} 8. cxd5 {[%clk 0:10:04.6]} 8...
d6 {[%clk 0:10:05.6]} 9. h3 {[%clk 0:10:05.1]} 9... Re8 {[%clk 0:09:50.8]} 10.
O-O {[%clk 0:10:05.5]} 10... Nh5 {[%clk 0:09:51.9]} 11. Bg5 {[%clk 0:09:51]}
11... Bf6 {[%clk 0:09:52]} 12. Be3 {[%clk 0:09:51.6]} 12... Nd7 {[%clk
0:09:51.8]} 13. a4 {[%clk 0:09:44.9]} 13... Ne5 {[%clk 0:09:32.1]} 14. Be2
{[%clk 0:09:45.7]} 14... Nxf3+ {[%clk 0:09:23.3]} 15. Bxf3 {[%clk 0:09:47.6]}
15... Ng7 {[%clk 0:09:25.2]} 16. Qd2 {[%clk 0:09:04.9]} 16... h5 {[%clk
0:09:23.2]} 17. Bf4 {[%clk 0:08:46.8]} 17... g5 {[%clk 0:09:21.6]} 18. Bh2
{[%clk 0:08:37.7]} 18... g4 {[%clk 0:08:52.6]} 19. hxg4 {[%clk 0:08:31.1]} 19...
hxg4 {[%clk 0:08:54.5]} 20. Be2 {[%clk 0:08:32.6]} 20... a6 {[%clk 0:08:16.7]}
21. Rae1 {[%clk 0:08:17.9]} 21... Be5 {[%clk 0:07:40.4]} 22. Bxe5 {[%clk
0:08:13.2]} 22... Rxe5 {[%clk 0:07:39.1]} 23. g3 {[%clk 0:08:11.4]} 23... Bd7
{[%clk 0:07:12.9]} 24. Kg2 {[%clk 0:08:11]} 24... Qg5 {[%clk 0:05:39.8]} 25.
Qxg5 {[%clk 0:07:01.2]} 25... Rxg5 {[%clk 0:05:41.6]} 26. Rh1 {[%clk 0:07:02.9]}
26... Nh5 {[%clk 0:05:18.3]} 27. a5 {[%clk 0:07:01.6]} 27... Nf6 {[%clk
0:05:07.9]} 28. Bd3 {[%clk 0:07:01.9]} 28... Kg7 {[%clk 0:04:51]} 29. Rb1 {[%clk
0:07:01.1]} 29... Bb5 {[%clk 0:04:28.4]} 30. Bc2 {[%clk 0:05:49.2]} 30... Be2
{[%clk 0:04:21]} 31. Nxe2 {[%clk 0:05:48.6]} 1-0

[Event "GrandPrix_29.05"]
[Site "Chess.com"]
[Date "2020.05.29"]
[Round "4"]
[White "LANCELOT96"]
[Black "bedgasm"]
[Result "0-1"]
[WhiteElo "2020"]
[BlackElo "2239"]
[TimeControl "600+2"]
[EndTime "10:49:46 PDT"]
[Termination "bedgasm won by resignation"]

1. d4 {[%clk 0:10:01.9]} 1... Nf6 {[%clk 0:10:00.5]} 2. c4 {[%clk 0:10:03.2]}
2... d5 {[%clk 0:09:58.8]} 3. cxd5 {[%clk 0:10:03.8]} 3... Nxd5 {[%clk
0:09:59.6]} 4. e4 {[%clk 0:10:05.1]} 4... Nb6 {[%clk 0:09:58.8]} 5. Nc3 {[%clk
0:10:06.3]} 5... g6 {[%clk 0:09:58.9]} 6. f3 {[%clk 0:10:06]} 6... Bg7 {[%clk
0:09:58.7]} 7. Be3 {[%clk 0:10:07.7]} 7... O-O {[%clk 0:09:58.4]} 8. Nge2 {[%clk
0:10:08.7]} 8... Nc6 {[%clk 0:09:59.5]} 9. d5 {[%clk 0:10:08.5]} 9... Na5 {[%clk
0:09:50.6]} 10. Bd4 {[%clk 0:10:03.5]} 10... e5 {[%clk 0:09:41]} 11. Bc5 {[%clk
0:10:00.4]} 11... Re8 {[%clk 0:09:40.4]} 12. Nc1 {[%clk 0:09:55.6]} 12... Nac4
{[%clk 0:09:29]} 13. Bxc4 {[%clk 0:09:54.2]} 13... Nxc4 {[%clk 0:09:28.9]} 14.
b3 {[%clk 0:09:52.7]} 14... Nd6 {[%clk 0:09:29.8]} 15. O-O {[%clk 0:09:53.3]}
15... b6 {[%clk 0:09:15.7]} 16. Be3 {[%clk 0:09:52.7]} 16... f5 {[%clk
0:08:59.4]} 17. Nd3 {[%clk 0:09:53.4]} 17... f4 {[%clk 0:08:57.6]} 18. Bf2
{[%clk 0:09:54.3]} 18... a5 {[%clk 0:08:39.2]} 19. Nb2 {[%clk 0:08:55.7]} 19...
Ba6 {[%clk 0:08:25.2]} 20. Re1 {[%clk 0:08:56.5]} 20... g5 {[%clk 0:08:25.8]}
21. g4 {[%clk 0:08:57.3]} 21... h5 {[%clk 0:08:05.3]} 22. h3 {[%clk 0:08:58.4]}
22... Kf7 {[%clk 0:07:52.5]} 23. Kg2 {[%clk 0:08:58.7]} 23... Rh8 {[%clk
0:07:50.1]} 24. Rh1 {[%clk 0:08:59.8]} 24... Qd7 {[%clk 0:06:58.8]} 25. Nb1
{[%clk 0:08:54.4]} 25... hxg4 {[%clk 0:06:54.5]} 26. hxg4 {[%clk 0:08:54.6]}
26... Rxh1 {[%clk 0:06:51.5]} 27. Kxh1 {[%clk 0:08:50.7]} 27... Rh8+ {[%clk
0:06:48.1]} 28. Kg2 {[%clk 0:08:52]} 28... Bf6 {[%clk 0:06:34.9]} 29. Na3 {[%clk
0:08:31.8]} 29... Kg6 {[%clk 0:06:22.1]} 30. Nac4 {[%clk 0:08:32.9]} 30... Qh7
{[%clk 0:06:18.5]} 31. Kf1 {[%clk 0:08:34.3]} 31... Qh2 {[%clk 0:05:30.7]} 32.
Ke2 {[%clk 0:08:33.3]} 32... Nb5 {[%clk 0:05:21.7]} 33. Ke1 {[%clk 0:07:23.5]}
33... Qg2 {[%clk 0:03:31.7]} 34. Kd2 {[%clk 0:07:23.2]} 34... Qxf2+ {[%clk
0:02:49.5]} 0-1

[Event "GrandPrix_29.05"]
[Site "Chess.com"]
[Date "2020.05.29"]
[Round "4"]
[White "gummigisla"]
[Black "Zakaryan_David"]
[Result "0-1"]
[WhiteElo "2069"]
[BlackElo "1352"]
[TimeControl "600+2"]
[EndTime "10:49:48 PDT"]
[Termination "Zakaryan_David won by resignation"]

1. Nf3 {[%clk 0:10:01]} 1... Nf6 {[%clk 0:10:00.4]} 2. g3 {[%clk 0:09:58.4]}
2... g6 {[%clk 0:10:01.3]} 3. Bg2 {[%clk 0:09:59.7]} 3... Bg7 {[%clk 0:10:03.2]}
4. d3 {[%clk 0:10:00.3]} 4... O-O {[%clk 0:10:05.1]} 5. e4 {[%clk 0:10:00.9]}
5... d5 {[%clk 0:10:05.6]} 6. Nbd2 {[%clk 0:09:58.2]} 6... c5 {[%clk 0:10:03.8]}
7. O-O {[%clk 0:09:57.5]} 7... Nc6 {[%clk 0:10:05.1]} 8. c3 {[%clk 0:09:56.3]}
8... e5 {[%clk 0:10:05.4]} 9. Qe2 {[%clk 0:09:52.8]} 9... d4 {[%clk 0:10:05.2]}
10. Nc4 {[%clk 0:09:50.4]} 10... Ne8 {[%clk 0:10:05.9]} 11. a4 {[%clk
0:09:47.7]} 11... b6 {[%clk 0:10:06.2]} 12. Bg5 {[%clk 0:09:37.7]} 12... f6
{[%clk 0:10:06.7]} 13. Bd2 {[%clk 0:09:37.6]} 13... Nd6 {[%clk 0:10:05.5]} 14.
Nxd6 {[%clk 0:09:31]} 14... Qxd6 {[%clk 0:10:07.4]} 15. c4 {[%clk 0:09:30.8]}
15... f5 {[%clk 0:10:03.1]} 16. exf5 {[%clk 0:09:28.2]} 16... gxf5 {[%clk
0:10:05]} 17. a5 {[%clk 0:09:25.9]} 17... Rb8 {[%clk 0:09:24.3]} 18. Ng5 {[%clk
0:09:21.4]} 18... h6 {[%clk 0:09:14.3]} 19. Bd5+ {[%clk 0:09:20]} 19... Kh8
{[%clk 0:09:15.2]} 20. Nf7+ {[%clk 0:09:20.6]} 20... Rxf7 {[%clk 0:09:16.3]} 21.
Bxf7 {[%clk 0:09:20.9]} 21... Ne7 {[%clk 0:09:05.2]} 22. axb6 {[%clk 0:09:17.1]}
22... axb6 {[%clk 0:09:04.2]} 23. f4 {[%clk 0:09:01.4]} 23... e4 {[%clk
0:09:03.9]} 24. dxe4 {[%clk 0:09:01.4]} 24... fxe4 {[%clk 0:09:05.8]} 25. Qxe4
{[%clk 0:08:45.1]} 25... Bf5 {[%clk 0:09:05.3]} 26. Qf3 {[%clk 0:08:43.2]} 26...
d3 {[%clk 0:08:55.4]} 27. Bc3 {[%clk 0:08:40.9]} 27... Bd4+ {[%clk 0:08:55.9]}
28. Kg2 {[%clk 0:08:30.6]} 28... Kg7 {[%clk 0:08:35.5]} 29. Bd5 {[%clk
0:08:28.1]} 29... Nxd5 {[%clk 0:08:26]} 30. Bxd4+ {[%clk 0:08:23.5]} 30... cxd4
{[%clk 0:08:26.4]} 31. cxd5 {[%clk 0:08:24.4]} 31... Re8 {[%clk 0:08:04.9]} 32.
Rfe1 {[%clk 0:08:23.4]} 32... Qd7 {[%clk 0:07:20.3]} 33. Re5 {[%clk 0:08:05.5]}
33... d2 {[%clk 0:07:14.6]} 34. Qe2 {[%clk 0:07:36.4]} 34... Qxd5+ {[%clk
0:07:14.5]} 35. Kf2 {[%clk 0:07:09.4]} 35... Rxe5 {[%clk 0:07:13.4]} 36. fxe5
{[%clk 0:07:09.8]} 36... d3 {[%clk 0:07:03]} 37. Qxd2 {[%clk 0:07:08.5]} 37...
Qd4+ {[%clk 0:07:04.2]} 38. Kg2 {[%clk 0:06:57.7]} 38... Be4+ {[%clk 0:06:47.1]}
39. Kf1 {[%clk 0:06:56.2]} 39... Bf3 {[%clk 0:05:23.8]} 40. Re1 {[%clk
0:06:15.6]} 40... Bg4 {[%clk 0:05:20.8]} 41. Qf2 {[%clk 0:05:35.5]} 41... Qxf2+
{[%clk 0:05:11.2]} 42. Kxf2 {[%clk 0:05:35.9]} 42... d2 {[%clk 0:05:12.5]} 0-1

[Event "GrandPrix_29.05"]
[Site "Chess.com"]
[Date "2020.05.29"]
[Round "4"]
[White "Volodar_Murzin"]
[Black "Chepaschess"]
[Result "1/2-1/2"]
[WhiteElo "2501"]
[BlackElo "2617"]
[TimeControl "600+2"]
[EndTime "10:50:03 PDT"]
[Termination "Game drawn by repetition"]

1. e4 {[%clk 0:10:01.9]} 1... c6 {[%clk 0:10:01.1]} 2. Nf3 {[%clk 0:10:00.5]}
2... d5 {[%clk 0:10:01.6]} 3. Nc3 {[%clk 0:10:01.7]} 3... dxe4 {[%clk
0:09:59.6]} 4. Nxe4 {[%clk 0:10:02.4]} 4... Nf6 {[%clk 0:10:01.3]} 5. Qe2 {[%clk
0:09:49.2]} 5... Bf5 {[%clk 0:10:00.9]} 6. Nxf6+ {[%clk 0:09:36.1]} 6... gxf6
{[%clk 0:10:02.8]} 7. d4 {[%clk 0:09:37.5]} 7... Qd5 {[%clk 0:10:01.3]} 8. c3
{[%clk 0:09:08.1]} 8... Bg4 {[%clk 0:09:56.6]} 9. Be3 {[%clk 0:09:01.4]} 9...
Nd7 {[%clk 0:09:36.1]} 10. h3 {[%clk 0:08:25.6]} 10... Bxf3 {[%clk 0:09:35.7]}
11. Qxf3 {[%clk 0:08:27.5]} 11... Qxf3 {[%clk 0:09:34.3]} 12. gxf3 {[%clk
0:08:29.4]} 12... e6 {[%clk 0:09:30.5]} 13. Bd3 {[%clk 0:07:35.1]} 13... Bd6
{[%clk 0:08:52.9]} 14. Ke2 {[%clk 0:07:01.2]} 14... Ke7 {[%clk 0:08:43.2]} 15.
Rag1 {[%clk 0:06:53.4]} 15... h5 {[%clk 0:08:30.9]} 16. Rg7 {[%clk 0:06:23.4]}
16... Rag8 {[%clk 0:08:22.8]} 17. Rhg1 {[%clk 0:06:13.1]} 17... Rxg7 {[%clk
0:08:22]} 18. Rxg7 {[%clk 0:06:15]} 18... f5 {[%clk 0:07:44.5]} 19. Rg1 {[%clk
0:06:09.7]} 19... Nf8 {[%clk 0:06:53.4]} 20. f4 {[%clk 0:03:32.4]} 20... Ng6
{[%clk 0:06:40.1]} 21. Kf3 {[%clk 0:03:32]} 21... Nh4+ {[%clk 0:06:03.5]} 22.
Ke2 {[%clk 0:03:31.4]} 22... Ng6 {[%clk 0:06:01.2]} 23. Kf3 {[%clk 0:03:32]}
23... Nh4+ {[%clk 0:05:25]} 24. Ke2 {[%clk 0:03:31.7]} 24... Ng6 {[%clk
0:05:26.1]} 1/2-1/2

[Event "GrandPrix_29.05"]
[Site "Chess.com"]
[Date "2020.05.29"]
[Round "4"]
[White "am00ss00"]
[Black "SacrificeGod"]
[Result "0-1"]
[WhiteElo "2097"]
[BlackElo "2318"]
[TimeControl "600+2"]
[EndTime "10:50:07 PDT"]
[Termination "SacrificeGod won by resignation"]

1. e4 {[%clk 0:08:56.8]} 1... c5 {[%clk 0:09:48.5]} 2. Nc3 {[%clk 0:08:57]} 2...
d6 {[%clk 0:09:46.9]} 3. g3 {[%clk 0:08:58.1]} 3... g6 {[%clk 0:09:47.6]} 4. Bg2
{[%clk 0:08:59.2]} 4... Bg7 {[%clk 0:09:48.8]} 5. d3 {[%clk 0:09:00.1]} 5... Nc6
{[%clk 0:09:49.6]} 6. f4 {[%clk 0:08:59.2]} 6... Nf6 {[%clk 0:09:42.3]} 7. Nf3
{[%clk 0:08:58.5]} 7... O-O {[%clk 0:09:42.2]} 8. O-O {[%clk 0:08:59]} 8... Rb8
{[%clk 0:09:43.5]} 9. h3 {[%clk 0:08:59.8]} 9... b5 {[%clk 0:09:44]} 10. Be3
{[%clk 0:08:57.4]} 10... b4 {[%clk 0:09:17.7]} 11. Ne2 {[%clk 0:08:57.5]} 11...
Ba6 {[%clk 0:08:58.3]} 12. Qd2 {[%clk 0:08:51.8]} 12... c4 {[%clk 0:08:57.1]}
13. e5 {[%clk 0:08:15.7]} 13... dxe5 {[%clk 0:08:45.3]} 14. fxe5 {[%clk
0:08:05]} 14... Ne8 {[%clk 0:08:34]} 15. d4 {[%clk 0:07:58.5]} 15... c3 {[%clk
0:08:30.9]} 16. bxc3 {[%clk 0:07:49.8]} 16... bxc3 {[%clk 0:08:32.1]} 17. Qd1
{[%clk 0:07:34.6]} 17... Rb2 {[%clk 0:08:23]} 18. Rf2 {[%clk 0:07:19.4]} 18...
Qa5 {[%clk 0:08:13.4]} 19. Nc1 {[%clk 0:07:04.3]} 19... Nb4 {[%clk 0:07:15.9]}
20. Nb3 {[%clk 0:06:58.2]} 20... Qa3 {[%clk 0:07:09.6]} 21. Bc1 {[%clk
0:06:44.6]} 21... Nc7 {[%clk 0:07:01.5]} 22. Bxb2 {[%clk 0:06:04.2]} 22... cxb2
{[%clk 0:07:00.9]} 23. Rb1 {[%clk 0:06:03.7]} 23... Ncd5 {[%clk 0:06:59.5]} 24.
Qe1 {[%clk 0:05:34.8]} 24... Rc8 {[%clk 0:06:41.4]} 25. c3 {[%clk 0:05:14.1]}
25... Nd3 {[%clk 0:06:39.5]} 26. Qd2 {[%clk 0:04:38]} 26... Nxc3 {[%clk
0:06:23.9]} 27. Rxb2 {[%clk 0:04:26]} 27... Nxf2 {[%clk 0:05:59.1]} 28. Kxf2
{[%clk 0:03:44.6]} 28... Ne4+ {[%clk 0:05:50.3]} 29. Ke3 {[%clk 0:03:35.5]}
29... Nxd2 {[%clk 0:05:50.4]} 30. Rxd2 {[%clk 0:03:37.4]} 30... Bh6+ {[%clk
0:05:49.5]} 0-1